bitfinex/quotes_SOLUSD_20220130
["timestamp","ask_amount","ask_price","bid_price","bid_amount"]
[1643566122510,34.01047831,95.039,94.993,1.45637073]
[1643566122710,34.01047831,95.039,94.994,0.25]
[1643566122910,34.01047831,95.039,95.003,6.0]
[1643566123109,34.01047831,95.039,94.994,0.25]
[1643566124110,34.01047831,95.039,94.991,0.25]
[1643566126416,34.01047831,95.039,95.0,6.0]
[1643566126821,34.01047831,95.039,95.001,0.25]
[1643566131222,0.25,95.038,95.001,0.25]
[1643566131422,23.846,95.049,95.001,0.25]
[1643566131623,23.846,95.049,95.0,6.0]
[1643566131825,0.25,95.048,95.001,0.25]
[1643566132026,23.846,95.049,95.001,0.25]
[1643566132721,0.25,95.048,95.001,0.25]
[1643566132923,0.25,95.048,95.002,6.0]
[1643566133325,0.25,95.048,95.003,0.25]
[1643566134427,0.25,95.048,95.001,0.25]
[1643566134631,0.25,95.048,95.001,6.25]
[1643566135230,0.25,95.048,95.001,0.25]
[1643566135430,0.25,95.048,95.011,6.0]
[1643566135832,0.25,95.048,95.012,0.25]
[1643566136431,15.791,95.04,95.012,0.25]
[1643566136833,15.791,95.04,94.99,15.791]
[1643566136834,15.791,95.04,95.003,6.0]
[1643566137032,15.791,95.04,95.002,6.0]
[1643566137334,15.791,95.04,95.003,0.25]
[1643566137532,15.791,95.04,95.003,6.25]
[1643566139132,0.25,95.048,95.003,6.25]
[1643566139331,0.25,95.048,95.003,0.25]
[1643566139534,0.25,95.048,95.004,6.0]
[1643566139937,0.25,95.048,95.005,0.25]
[1643566140534,23.846,95.049,95.005,0.25]
[1643566141334,39.97046774,95.052,95.005,0.25]
[1643566141535,39.97046774,95.052,95.01,15.787]
[1643566141761,39.97046774,95.052,95.011,0.25]
[1643566146565,39.97046774,95.052,95.01,15.787]
[1643566148368,39.97046774,95.052,95.011,0.25]
[1643566150071,23.5962,95.059,95.011,0.25]
[1643566151371,23.5962,95.059,95.02,6.0]
[1643566151574,1.46594224,95.087,95.02,21.786]
[1643566151774,23.9136,95.099,95.021,1.70637073]
[1643566151972,23.9136,95.099,95.029,1.45637073]
[1643566152174,23.9136,95.099,95.031,1.45637073]
[1643566152471,23.9136,95.099,95.04,15.781]
[1643566152674,23.9136,95.099,95.041,6.0]
[1643566152873,23.9136,95.099,95.042,6.25]
[1643566153073,23.9136,95.099,95.042,6.0]
[1643566153275,23.8517,95.098,95.043,0.25]
[1643566154079,23.8517,95.098,95.05,6.0]
[1643566154279,23.8517,95.098,95.051,0.25]
[1643566155081,0.25,95.097,95.051,0.25]
[1643566155284,23.8517,95.098,95.051,0.25]
[1643566155483,23.8517,95.098,95.06,6.0]
[1643566155885,23.8517,95.098,95.061,0.25]
[1643566159184,32.80267945,95.113,95.061,0.25]
[1643566159384,23.1153,95.112,95.061,0.25]
[1643566161709,105.1,95.111,95.06,15.779]
[1643566161909,105.1,95.111,95.04,58.594]
[1643566161910,105.35,95.111,95.04,6.0]
[1643566162107,6.0,95.101,95.034,6.0]
[1643566162308,105.35,95.1,95.034,6.0]
[1643566162509,0.25,95.1,95.031,6.0]
[1643566162708,23.4548,95.1,95.022,6.0]
[1643566163112,39.2388,95.1,95.03,15.783]
[1643566163309,39.2388,95.1,95.031,0.25]
[1643566163509,39.2388,95.1,95.04,6.0]
[1643566163909,105.1,95.099,95.041,0.25]
[1643566164309,15.785,95.09,95.041,0.25]
[1643566164910,23.4155,95.089,95.041,0.25]
[1643566165112,23.4155,95.089,95.022,6.0]
[1643566165311,23.4155,95.089,95.023,0.25]
[1643566165512,23.4155,95.089,95.03,6.0]
[1643566165913,23.4155,95.089,95.04,15.782]
[1643566166111,23.4155,95.089,95.05,6.0]
[1643566166311,23.4155,95.089,95.051,0.25]
[1643566166911,24.3407,95.112,95.051,0.25]
[1643566167114,47.6866,95.112,95.051,0.25]
[1643566167512,47.6866,95.112,95.06,6.0]
[1643566167713,0.25,95.111,95.06,6.0]
[1643566167915,0.25,95.111,95.061,0.25]
[1643566168111,0.25,95.111,95.051,0.25]
[1643566169618,0.25,95.111,95.06,6.0]
[1643566169818,0.25,95.111,95.061,0.25]
[1643566171019,0.25,95.111,95.05,15.781]
[1643566171020,0.25,95.111,95.051,22.777]
[1643566172120,47.6866,95.112,95.051,22.777]
[1643566172320,47.6866,95.112,95.061,6.0]
[1643566172723,47.6866,95.112,95.062,0.25]
[1643566174523,47.6866,95.112,95.061,6.25]
[1643566174722,47.6866,95.112,95.061,6.0]
[1643566174922,47.6866,95.112,95.062,0.25]
[1643566178027,47.6866,95.112,95.07,6.0]
[1643566178431,47.6866,95.112,95.071,0.25]
[1643566179530,47.6866,95.112,95.061,0.25]
[1643566180330,47.6866,95.112,95.07,21.777]
[1643566180731,47.6866,95.112,95.071,0.25]
[1643566182732,23.3459,95.112,95.071,0.25]
[1643566185637,0.25,95.111,95.045,1.45637073]
[1643566185839,0.25,95.111,95.071,0.25]
[1643566186044,23.3459,95.112,95.071,0.25]
[1643566186238,23.3459,95.112,95.053,1.45637073]
[1643566186537,23.3459,95.112,95.031,25.75808092]
[1643566186538,23.3459,95.112,95.046,1.45637073]
[1643566186938,23.3459,95.112,95.06,15.778]
[1643566187539,23.3459,95.112,95.061,0.25]
[1643566187739,23.3459,95.112,95.06,15.778]
[1643566187941,0.25,95.111,95.06,15.778]
[1643566189140,0.25,95.111,95.061,0.25]
[1643566191646,0.25,95.111,95.043,1.45637073]
[1643566191647,0.25,95.111,95.057,0.25]
[1643566191848,0.25,95.111,95.06,6.0]
[1643566192049,23.3459,95.112,95.061,0.25]
[1643566192248,23.3459,95.112,95.06,15.779]
[1643566192646,23.3459,95.112,95.061,0.25]
[1643566194268,0.25,95.111,95.061,0.25]
[1643566194770,23.3459,95.112,95.054,0.25]
[1643566195069,23.3459,95.112,95.054,24.605]
[1643566195269,0.25,95.111,95.054,24.605]
[1643566197772,23.3459,95.112,95.06,15.779]
[1643566198172,23.3459,95.112,95.061,0.25]
[1643566198376,23.3459,95.112,95.07,6.0]
[1643566198777,23.3459,95.112,95.071,0.25]
[1643566199374,22.9386,95.129,95.071,0.25]
[1643566199576,23.3281,95.128,95.071,24.961]
[1643566200876,43.64416833,95.127,95.071,24.961]
[1643566203281,23.3281,95.128,95.071,24.961]
[1643566204480,23.3281,95.128,95.081,6.0]
[1643566204882,23.3281,95.128,95.082,0.25]
[1643566206383,23.3281,95.128,95.053,1.45637073]
[1643566206384,0.25,95.127,95.053,1.45637073]
[1643566206580,105.35,95.127,95.063,6.0]
[1643566206781,105.1,95.116,95.047,1.45637073]
[1643566206982,6.0,95.106,95.045,1.45637073]
[1643566207184,37.44803871,95.104,95.045,1.45637073]
[1643566207383,37.44803871,95.104,95.041,6.0]
[1643566207785,37.44803871,95.104,95.042,0.25]
[1643566209087,37.44803871,95.104,95.05,6.0]
[1643566209285,37.44803871,95.104,95.051,0.25]
[1643566209491,37.44803871,95.104,95.05,6.0]
[1643566209887,0.25,95.103,95.04,15.782]
[1643566210088,0.25,95.103,95.05,6.0]
[1643566210888,105.35,95.103,95.044,6.0]
[1643566211290,105.35,95.103,95.045,0.25]
[1643566212192,105.1,95.103,95.044,0.25]
[1643566212392,105.1,95.103,95.043,0.25]
[1643566212592,105.1,95.103,95.043,6.25]
[1643566212793,105.1,95.103,95.044,0.25]
[1643566213092,105.1,95.103,95.05,6.0]
[1643566213292,105.1,95.103,95.051,0.25]
[1643566213895,40.48197197,95.102,95.051,0.25]
[1643566214497,40.48197197,95.102,95.047,0.25]
[1643566215096,40.48197197,95.102,95.05,6.0]
[1643566215295,40.48197197,95.102,95.051,0.25]
[1643566216698,105.1,95.101,95.051,0.25]
[1643566219803,40.48197197,95.102,95.041,0.25]
[1643566220002,105.1,95.101,95.041,0.25]
[1643566220628,105.1,95.101,95.05,6.0]
[1643566220830,105.1,95.101,95.051,0.25]
[1643566222327,40.48197197,95.102,95.051,0.25]
[1643566222728,22.8228,95.105,95.051,0.25]
[1643566223528,22.8228,95.105,95.06,6.0]
[1643566223827,22.8228,95.105,95.061,0.25]
[1643566226332,22.8228,95.105,95.052,0.25]
[1643566235051,15.784,95.1,95.039,1.45637073]
[1643566235248,105.1,95.094,95.027,24.4138]
[1643566235547,129.1718,95.094,95.037,6.0]
[1643566235747,0.25,95.093,95.037,6.0]
[1643566236251,105.1,95.089,95.038,0.25]
[1643566236647,0.25,95.088,95.038,0.25]
[1643566243651,0.25,95.088,95.04,6.0]
[1643566243851,0.25,95.088,95.041,0.25]
[1643566245455,0.25,95.088,95.037,6.0]
[1643566245655,0.25,95.088,95.038,0.25]
[1643566248463,105.1,95.089,95.038,0.25]
[1643566250266,0.25,95.088,95.038,0.25]
[1643566251266,0.25,95.088,95.04,6.0]
[1643566251664,0.25,95.088,95.041,0.25]
[1643566256788,0.25,95.088,95.031,0.25]
[1643566258190,0.25,95.088,95.026,0.25]
[1643566258990,0.25,95.088,95.03,6.0]
[1643566259392,0.25,95.088,95.036,6.0]
[1643566259795,0.25,95.088,95.037,0.25]
[1643566276105,0.25,95.088,95.037,6.25]
[1643566276308,1.46594224,95.104,95.037,6.25]
[1643566276509,1.46594224,95.113,95.05,1.64986122]
[1643566276706,1.42826422,95.12,95.05,1.64986122]
[1643566276907,23.1615,95.128,95.06,6.0]
[1643566277307,23.1615,95.128,95.061,0.25]
[1643566277809,0.25,95.127,95.061,24.1185]
[1643566278007,0.25,95.127,95.071,6.0]
[1643566278409,0.25,95.127,95.072,0.25]
[1643566278811,36.6236048,95.127,95.072,0.25]
[1643566279208,105.1,95.126,95.072,0.25]
[1643566279409,105.1,95.126,95.062,0.25]
[1643566279608,0.25,95.125,95.062,0.25]
[1643566279809,15.781,95.12,95.062,0.25]
[1643566280008,15.781,95.12,95.071,6.0]
[1643566280210,105.35,95.119,95.071,6.0]
[1643566280410,105.35,95.119,95.072,0.25]
[1643566283108,105.35,95.119,95.062,0.25]
[1643566283308,105.35,95.119,95.071,6.0]
[1643566283709,105.35,95.119,95.072,0.25]
[1643566283908,105.35,95.119,95.062,0.25]
[1643566289043,105.35,95.119,95.071,6.0]
[1643566289254,105.35,95.119,95.062,0.25]
[1643566291048,105.35,95.119,95.071,6.0]
[1643566291647,105.1,95.119,95.071,6.0]
[1643566292847,105.1,95.119,95.062,0.25]
[1643566293047,0.25,95.118,95.071,6.0]
[1643566293447,105.1,95.119,95.071,6.0]
[1643566294052,105.1,95.119,95.072,0.25]
[1643566294850,0.25,95.118,95.072,0.25]
[1643566310369,105.1,95.119,95.072,0.25]
[1643566310769,0.25,95.118,95.072,0.25]
[1643566315791,0.25,95.125,95.072,0.25]
[1643566316090,105.1,95.119,95.072,0.25]
[1643566316390,0.25,95.118,95.072,0.25]
[1643566320893,0.25,95.118,95.071,6.0]
[1643566321296,105.35,95.126,95.071,6.0]
[1643566321795,15.78,95.12,95.071,6.0]
[1643566321997,105.1,95.119,95.071,6.0]
[1643566322199,105.35,95.119,95.071,6.0]
[1643566322396,105.35,95.119,95.072,0.25]
[1643566328601,0.25,95.119,95.072,0.25]
[1643566328801,0.25,95.125,95.072,0.25]
[1643566331209,15.78,95.12,95.072,0.25]
[1643566331507,105.35,95.119,95.072,0.25]
[1643566341952,105.1,95.117,95.072,0.25]
[1643566342454,0.25,95.116,95.072,0.25]
[1643566361072,15.782,95.11,95.072,0.25]
[1643566361271,0.25,95.109,95.062,0.25]
[1643566363571,0.25,95.109,95.071,6.0]
[1643566363771,0.25,95.109,95.072,0.25]
[1643566367176,105.35,95.117,95.072,0.25]
[1643566373587,15.782,95.11,95.072,0.25]
[1643566373782,105.35,95.109,95.072,0.25]
[1643566377485,105.35,95.109,95.071,6.0]
[1643566377685,105.35,95.109,95.05,6.0]
[1643566377887,105.35,95.109,95.051,6.25]
[1643566378488,105.35,95.109,95.052,24.935]
[1643566378987,105.35,95.109,95.062,6.0]
[1643566379387,105.35,95.109,95.063,0.25]
[1643566388014,105.35,95.109,95.029,2.91342645]
[1643566388315,45.03690262,95.098,95.021,26.81893726]
[1643566388515,23.8921,95.097,95.007,2.91342645]
[1643566388716,105.1,95.087,95.004,26.81860788]
[1643566389015,23.8921,95.086,95.004,23.8927]
[1643566389215,15.79,95.07,95.004,23.8927]
[1643566389419,40.22959001,95.068,95.014,6.0]
[1643566389922,39.47959001,95.068,95.015,0.25]
[1643566391024,15.789,95.06,95.015,0.25]
[1643566391223,105.1,95.059,95.005,0.25]
[1643566391522,105.35,95.059,95.005,0.25]
[1643566391721,24.7934,95.058,95.005,0.25]
[1643566391922,105.1,95.057,95.014,6.0]
[1643566392124,105.1,95.057,95.005,0.25]
[1643566393021,105.1,95.057,95.014,6.0]
[1643566393427,105.1,95.057,95.015,0.25]
[1643566394330,57.42391543,95.05,95.015,0.25]
[1643566394532,41.63291543,95.05,95.014,6.0]
[1643566394733,146.73291543,95.05,95.014,6.0]
[1643566394929,146.73291543,95.05,95.015,0.25]
[1643566396431,105.1,95.05,95.015,0.25]
[1643566397436,34.87469794,95.049,95.015,0.25]
[1643566397838,34.87469794,95.049,95.005,0.25]
[1643566398237,105.1,95.05,95.005,0.25]
[1643566398639,105.1,95.05,95.014,6.0]
[1643566398839,105.1,95.05,95.015,0.25]
[1643566400243,105.1,95.05,95.005,0.25]
[1643566400444,105.1,95.05,95.014,6.0]
[1643566400868,105.1,95.05,95.015,0.25]
[1643566404771,105.1,95.057,95.015,0.25]
[1643566405671,105.1,95.057,95.005,0.25]
[1643566408072,105.1,95.057,95.004,23.8927]
[1643566408278,0.25,95.056,95.004,23.8927]
[1643566408673,0.25,95.056,95.014,6.0]
[1643566409274,0.25,95.056,95.015,0.25]
[1643566410280,105.1,95.057,95.015,0.25]
[1643566410477,1.45914741,95.103,95.015,11.68]
[1643566410679,22.5833,95.096,95.015,35.1472]
[1643566410879,22.5833,95.096,95.025,6.0]
[1643566411077,44.83759356,95.095,95.026,24.3327]
[1643566411276,44.83759356,95.095,95.026,24.5827]
[1643566411480,44.83759356,95.095,95.036,6.0]
[1643566411677,0.25,95.094,95.037,24.3327]
[1643566411880,0.25,95.094,95.037,24.5827]
[1643566412078,15.785,95.09,95.037,24.5827]
[1643566412279,0.25,95.089,95.037,24.5827]
[1643566412477,0.25,95.089,95.047,6.0]
[1643566412884,105.35,95.089,95.048,0.25]
[1643566413883,22.5833,95.096,95.048,0.25]
[1643566414682,22.5833,95.096,95.05,6.0]
[1643566414883,22.5833,95.096,95.051,0.25]
[1643566415085,22.5833,95.096,95.058,6.0]
[1643566415285,22.5833,95.096,95.059,0.25]
[1643566416286,55.57607315,95.096,95.059,0.25]
[1643566416686,55.57607315,95.096,95.058,6.0]
[1643566416687,0.25,95.095,95.058,6.0]
[1643566416886,0.25,95.095,95.046,6.0]
[1643566417085,0.25,95.095,95.043,6.0]
[1643566417286,55.57607315,95.096,95.044,0.25]
[1643566417486,22.5833,95.096,95.044,0.25]
[1643566418491,22.5833,95.096,95.042,0.25]
[1643566418692,33.00108421,95.095,95.042,0.25]
[1643566419315,22.5833,95.096,95.042,0.25]
[1643566419892,22.5833,95.096,95.042,22.8271]
[1643566420092,22.5833,95.096,95.042,28.8271]
[1643566420491,22.5833,95.096,95.044,6.0]
[1643566420694,22.5833,95.096,95.042,22.8271]
[1643566420892,22.5833,95.096,95.052,6.0]
[1643566421093,15.785,95.09,95.042,22.5771]
[1643566421292,0.25,95.089,95.042,22.5771]
[1643566421493,15.785,95.09,95.052,6.0]
[1643566421893,0.25,95.089,95.052,6.0]
[1643566422193,22.5833,95.096,95.052,6.0]
[1643566422392,22.5833,95.096,95.053,0.25]
[1643566423592,22.5833,95.096,95.052,6.0]
[1643566423791,0.25,95.095,95.053,0.25]
[1643566424192,105.35,95.095,95.052,6.0]
[1643566425492,15.785,95.09,95.052,6.0]
[1643566425896,105.35,95.089,95.052,6.0]
[1643566429499,105.35,95.089,95.03,15.784]
[1643566429900,105.35,95.089,95.04,6.0]
[1643566430301,105.1,95.089,95.04,6.0]
[1643566430700,0.25,95.088,95.04,6.0]
[1643566430902,105.1,95.089,95.041,0.25]
[1643566431107,0.25,95.088,95.041,6.0]
[1643566431301,0.25,95.088,95.042,0.25]
[1643566432301,105.1,95.079,95.022,1.45853276]
[1643566432602,105.1,95.079,94.98,52.622]
[1643566432603,41.34913081,95.078,95.014,1.45853276]
[1643566432800,41.59913081,95.078,95.008,1.45853276]
[1643566433204,105.1,95.077,95.007,1.45853276]
[1643566433402,15.789,95.07,95.007,1.45853276]
[1643566433611,15.789,95.07,95.017,6.0]
[1643566433804,15.789,95.07,95.018,23.5452]
[1643566434004,15.789,95.07,95.018,29.5452]
[1643566434205,105.1,95.077,95.018,29.5452]
[1643566434433,15.788,95.07,95.018,29.5452]
[1643566434633,105.1,95.069,95.018,29.5452]
[1643566435034,15.788,95.07,95.018,29.5452]
[1643566435035,105.1,95.067,95.018,29.5452]
[1643566435440,0.25,95.066,95.018,29.5452]
[1643566435839,0.25,95.066,95.019,0.25]
[1643566437040,0.25,95.066,95.02,6.0]
[1643566437439,0.25,95.066,95.028,6.0]
[1643566438542,105.1,95.067,95.028,6.0]
[1643566442353,0.25,95.066,95.028,6.0]
[1643566442547,0.25,95.066,95.021,0.25]
[1643566442749,0.25,95.066,95.019,0.25]
[1643566446449,0.25,95.066,95.028,6.0]
[1643566447948,105.1,95.067,95.029,0.25]
[1643566448547,0.25,95.066,95.024,6.0]
[1643566448951,105.1,95.067,95.014,6.0]
[1643566449147,105.1,95.067,95.021,6.0]
[1643566449347,105.1,95.067,95.015,23.9949]
[1643566449650,105.1,95.067,95.025,6.0]
[1643566450048,105.1,95.067,95.026,0.25]
[1643566450949,0.25,95.066,95.026,0.25]
[1643566451149,105.1,95.067,95.026,0.25]
[1643566452249,0.25,95.066,95.026,0.25]
[1643566453449,0.25,95.066,95.025,6.0]
[1643566453850,0.25,95.066,95.026,0.25]
[1643566454053,0.25,95.066,95.025,6.0]
[1643566454253,0.25,95.066,95.011,1.45853276]
[1643566454454,0.25,95.066,95.016,0.25]
[1643566454455,39.72089207,95.059,95.016,0.25]
[1643566454652,105.1,95.056,95.016,0.25]
[1643566454852,24.5282,95.055,95.016,0.25]
[1643566455053,105.1,95.054,95.016,0.25]
[1643566455252,0.25,95.053,95.016,0.25]
[1643566455456,15.792,95.05,95.016,0.25]
[1643566455653,15.792,95.05,95.003,1.45853276]
[1643566455853,0.25,95.049,95.003,0.25]
[1643566456255,0.25,95.049,95.007,6.0]
[1643566456454,0.25,95.049,95.011,6.0]
[1643566456657,105.35,95.049,95.011,6.0]
[1643566456854,105.35,95.049,95.012,0.25]
[1643566457855,105.35,95.049,95.008,0.25]
[1643566458055,105.35,95.049,95.011,6.0]
[1643566458256,105.35,95.049,95.012,0.25]
[1643566459758,105.1,95.049,95.008,0.25]
[1643566459957,105.1,95.049,95.012,6.0]
[1643566460157,105.1,95.049,95.008,0.25]
[1643566462085,105.1,95.049,95.016,6.0]
[1643566462285,105.1,95.049,95.017,0.25]
[1643566462485,105.1,95.049,95.008,0.25]
[1643566463585,105.1,95.049,95.007,6.0]
[1643566463786,105.1,95.049,95.008,0.25]
[1643566464886,105.1,95.049,95.012,6.0]
[1643566465088,105.1,95.049,95.008,0.25]
[1643566465987,105.1,95.049,95.012,6.0]
[1643566466387,105.1,95.049,95.013,0.25]
[1643566466789,105.1,95.054,95.013,0.25]
[1643566467389,105.1,95.054,95.008,23.1571]
[1643566468390,0.25,95.053,95.008,23.1571]
[1643566469793,105.1,95.054,95.008,23.1571]
[1643566470193,0.25,95.053,95.008,23.1571]
[1643566470594,105.1,95.054,95.008,23.1571]
[1643566470796,0.25,95.053,95.008,23.1571]
[1643566472896,0.25,95.053,95.018,6.0]
[1643566473096,0.25,95.053,95.008,23.1571]
[1643566473898,105.1,95.054,95.018,6.0]
[1643566474298,105.1,95.054,95.019,0.25]
[1643566474700,105.1,95.054,95.019,6.25]
[1643566474899,24.2782,95.055,95.02,6.0]
[1643566475100,15.07,95.09,95.029,6.0]
[1643566475298,0.25,95.089,95.03,0.25]
[1643566475503,6.0,95.08,95.03,0.25]
[1643566475700,24.9704,95.079,95.03,0.25]
[1643566475904,25.2204,95.079,95.03,0.25]
[1643566476103,43.08026058,95.078,95.03,0.25]
[1643566476301,105.35,95.077,95.03,0.25]
[1643566476504,105.35,95.077,95.028,6.0]
[1643566476904,105.35,95.077,95.029,0.25]
[1643566477306,105.35,95.077,95.029,25.1676]
[1643566477502,105.35,95.077,95.039,6.0]
[1643566481908,105.1,95.077,95.039,6.0]
[1643566483609,0.25,95.076,95.039,6.0]
[1643566485414,0.25,95.077,95.039,6.0]
[1643566485615,105.35,95.077,95.039,6.0]
[1643566486215,105.1,95.077,95.039,6.0]
[1643566486415,0.25,95.076,95.039,6.0]
[1643566496348,43.08026058,95.078,95.039,6.0]
[1643566496546,43.08026058,95.078,95.04,0.25]
[1643566496747,43.08026058,95.078,95.039,6.0]
[1643566496748,105.1,95.077,95.039,6.0]
[1643566497753,105.1,95.075,95.039,6.0]
[1643566498749,0.25,95.074,95.039,6.0]
[1643566499152,105.1,95.075,95.039,6.0]
[1643566501353,105.1,95.075,95.04,0.25]
[1643566502953,23.1517,95.076,95.04,0.25]
[1643566508162,105.1,95.075,95.04,0.25]
[1643566508365,23.1517,95.076,95.022,1.45853276]
[1643566508563,6.0,95.065,95.017,1.45853276]
[1643566508869,0.25,95.064,95.017,1.45853276]
[1643566509065,33.80832597,95.059,95.017,1.45853276]
[1643566509264,25.0121,95.058,95.017,1.45853276]
[1643566509864,25.0121,95.058,95.005,1.45853276]
[1643566510064,105.1,95.049,95.005,1.45853276]
[1643566510265,15.793,95.05,95.006,0.25]
[1643566510464,15.793,95.05,95.004,0.25]
[1643566510665,0.25,95.049,95.012,6.0]
[1643566510870,0.25,95.049,95.013,0.25]
[1643566511068,105.35,95.049,95.01,6.0]
[1643566511267,0.25,95.049,95.011,0.25]
[1643566512565,0.25,95.049,95.009,6.0]
[1643566512566,0.25,95.049,95.01,0.25]
[1643566513166,0.25,95.049,95.007,6.0]
[1643566513377,0.25,95.049,95.008,0.25]
[1643566514268,105.35,95.049,95.008,0.25]
[1643566514470,105.35,95.049,95.006,23.2215]
[1643566515068,15.794,95.04,95.006,23.2215]
[1643566515269,39.21959235,95.039,95.006,23.2215]
[1643566516769,39.21959235,95.039,95.006,0.25]
[1643566517171,15.796,95.03,95.006,0.25]
[1643566517370,15.796,95.03,95.003,6.25]
[1643566517572,15.796,95.03,95.003,0.25]
[1643566517970,105.1,95.029,95.003,0.25]
[1643566518569,105.1,95.029,94.996,6.0]
[1643566518771,105.1,95.029,94.997,0.25]
[1643566518971,105.1,95.029,94.996,6.0]
[1643566519671,105.1,95.029,94.989,6.0]
[1643566519878,105.1,95.029,94.991,6.0]
[1643566520471,105.1,95.029,94.989,6.0]
[1643566520694,105.1,95.029,94.991,6.0]
[1643566520898,105.1,95.029,94.989,6.0]
[1643566521094,105.1,95.029,94.991,6.0]
[1643566521294,105.1,95.029,94.989,6.0]
[1643566521495,105.1,95.029,94.99,6.0]
[1643566521694,105.1,95.029,94.989,6.0]
[1643566523298,105.1,95.029,94.99,0.25]
[1643566525299,24.6199,95.038,94.99,0.25]
[1643566527604,24.6199,95.038,94.99,6.25]
[1643566527806,105.1,95.037,94.991,24.76]
[1643566528007,105.1,95.037,95.001,6.0]
[1643566528407,105.1,95.037,95.002,0.25]
[1643566530608,105.1,95.029,95.002,0.25]
[1643566531411,15.07,95.06,95.002,0.25]
[1643566531609,1.45914741,95.086,95.002,24.1781]
[1643566531810,22.5621,95.088,95.003,2.32621996]
[1643566532009,22.5621,95.088,95.013,6.0]
[1643566532210,105.1,95.087,95.014,22.8826]
[1643566532411,37.33714926,95.086,95.014,23.1326]
[1643566532611,37.33714926,95.086,95.024,6.0]
[1643566532811,0.25,95.085,95.025,23.66]
[1643566533015,6.0,95.076,95.035,6.0]
[1643566533512,6.0,95.07,95.036,0.25]
[1643566533910,0.25,95.069,95.036,0.25]
[1643566534111,6.0,95.07,95.036,0.25]
[1643566535213,15.07,95.1,95.036,0.25]
[1643566535411,23.2163,95.099,95.036,24.4512]
[1643566535614,23.4663,95.099,95.046,6.0]
[1643566535819,23.4663,95.099,95.047,0.25]
[1643566536215,105.1,95.097,95.047,0.25]
[1643566536620,0.25,95.096,95.05,6.0]
[1643566536814,0.25,95.096,95.051,0.25]
[1643566537814,30.853,95.11,95.051,0.25]
[1643566538016,2.92211834,95.141,95.051,0.25]
[1643566538017,25.78494741,95.129,95.052,2.32621996]
[1643566538215,24.3258,95.129,95.052,2.32621996]